Cogmind - Beta 15 @@@ ROGUE MODE // 2025.10.03 @ 18:07:22 Player: WitherScout Result: Self-destructed Performance ------------- Evolutions (2) 1000 Regions Visited (3) 600 Robots Destroyed (23) 115 Value Destroyed (573) 573 Prototype IDs (1) 20 Alien Tech Used (0) 0 Bonus (0) 0 TOTAL SCORE: 2308 Bonus ------- None Cogmind --------- Core Integrity 549/550 Matter 300/300 Energy 125/125 System Corruption 0% Temperature Cool (0) Movement Flying (117) Ox1 Location -8/Materials Parts ------- > --- POWER (1) -------- Light Ion Engine > --- PROPULSION (5) --- Flight Unit Flight Unit > --- UTILITY (2) ------ Small Storage Unit Improved Targeting Computer > --- WEAPON (3) ------- Light Assault Rifle Light Assault Rifle > --- INVENTORY (8) ---- Nuclear Core Improved Heat Sink Medium Storage Unit Light Armor Plating Hacking Suite Tractor Beam Heavy Assault Rifle Heavy Assault Rifle Peak State ------------ > --- POWER ------------ Ion Engine > --- PROPULSION ------- Light Treads Light Treads Light Treads > --- UTILITY ---------- Large Storage Unit Seismic Detector > --- WEAPON ----------- Advanced Beam Cannon Assault Rifle Light Assault Rifle > --- INVENTORY -------- Ion Engine Ion Engine Ion Engine Flight Unit Heat Sink Improved Heat Sink Small Storage Unit Large Battery Medium Matter Pod Utility Shielding Light Armor Plating Tractor Beam Light Assault Rifle [Rating: 12] Favorites ----------- Power Ion Engine Engine Ion Engine Propulsion Light Treads Treads Light Treads Flight Unit Flight Unit Utility Large Storage Unit Device Seismic Detector Storage Large Storage Unit Processor Improved Targeting Computer Weapon Light Assault Rifle Energy Cannon Advanced Beam Cannon Ballistic Gun Light Assault Rifle Build | -11 -10 -9 -8 ------- Run | Yrd Mat Mat Mat Slots Evolved 4 | . . 2 2 Power . | . . . . Propulsion 3 | . . 1 2 Utility . | . . . . Weapon 1 | . . 1 . Parts Attached 23 | 6 2 13 2 Power 4 | 1 . 2 1 Engine 4 | 1 . 2 1 Core . | . . . . Reactor . | . . . . Propulsion 6 | 2 . 4 . Treads 3 | 2 . 1 . Leg . | . . . . Wheel . | . . . . Hover . | . . . . Flight 3 | . . 3 . Utility 4 | 1 2 1 . Device 1 | . 1 . . Storage 2 | 1 1 . . Processor 1 | . . 1 . Hackware . | . . . . Protection . | . . . . Artifact . | . . . . Weapon 9 | 2 . 6 1 Energy Gun . | . . . . Energy Cannon 1 | . . 1 . Ballistic Gun 8 | 2 . 5 1 Ballistic Cannon . | . . . . Launcher . | . . . . Special Weapon . | . . . . Impact Weapon . | . . . . Slashing Weapon . | . . . . Piercing Weapon . | . . . . Special Melee Weapon . | . . . . Unidentified Prototypes 1 | . . 1 . Parts Lost 9 | . . 6 3 Power 2 | . . 1 1 Propulsion 4 | . . 3 1 Utility . | . . . . Weapon 3 | . . 2 1 Highest Loss Streak 6 | . . 6 3 To Critical Strikes . | . . . . Average Backups 8 | . 8 11 7 Power 1 | . 1 2 1 Propulsion . | . 1 . . Utility 4 | . 4 6 4 Weapon 1 | . 1 1 1 Tool/Special . | . . . . Unused Backups 14 | . 1 6 7 Power 4 | . . 2 2 Propulsion . | . . . . Utility 10 | . 1 4 5 Weapon . | . . . . Tool/Special . | . . . . Average Slot Usage (%) 91 | . 98 87 68 Engine 12 | . 13 9 8 Treads 21 | . 28 16 . Flight 4 | . . 8 20 Device 9 | . 13 6 . Storage 12 | . 14 11 9 Processor 2 | . . 4 9 Ballistic Gun 26 | . 28 26 21 Peak Build Rating 12 | 6 8 12 11 Average Rating 8 | 4 7 10 9 On Entrance 6 | . 6 8 11 Naked Turns . | . . . . Heaviest Build 33 | 13 29 33 11 Greatest Support 60 | 40 40 60 12 Greatest Overweight (x) 7 | 4 . 7 1 Average Overweight (x) . | 1 . . . Largest Inventory Capacity 15 | 8 15 15 8 Average Capacity 13 | 7 14 12 8 Most Carried 15 | 1 15 14 8 Average Carried 8 | . 8 11 7 Final Capacity 15 | 8 15 8 8 Final Carried 15 | 1 15 8 8 Class Distribution -------------------- 68% | Mutant 11% | Gunner 11% | Scavenger-Mutant 8% | Scavenger-Gunner Dominant Class ---------------- Mutant | -10/Materials Gunner | -9/Materials Scavenger-Mutant | -8/Materials Resources | -11 -10 -9 -8 ----------- Run | Yrd Mat Mat Mat Matter Collected 752 | 177 236 310 29 Remotely . | . . . . Salvage Created 716 | . 236 427 53 Parts 57 | . 21 31 5 Haulers Intercepted 1 | . . 1 . Recyclers Shooed . | . . . . Parts Field Recycled . | . . . . Retrieved Matter . | . . . . Parts Self-Destructed . | . . . . Prevented . | . . . . Kills | -11 -10 -9 -8 ------- Run | Yrd Mat Mat Mat Combat Hostiles Destroyed 21 | . 10 10 1 Guns 18 | . 10 7 1 Cannons 3 | . . 3 . Classes Destroyed 5 | . 2 3 . Builder 1 | . . 1 . Hauler 1 | . . 1 . Swarmer 9 | . 6 3 . Grunt 10 | . 4 6 . Sentry 2 | . . 1 1 Best Kill Streak 9 | . 3 9 1 Combat Bots Only 7 | . 3 7 1 Max Kills in Single Turn 2 | . 2 1 1 Gunslinging . | . . . . Exploded . | . . . . Melee . | . . . . Uniques/NPCs Destroyed . | . . . . Combat | -11 -10 -9 -8 -------- Run | Yrd Mat Mat Mat Hostile Shots Fired 169 | . 48 111 10 Missed 44 | . 8 33 3 Hits 125 | . 40 78 7 Projectile 125 | . 40 78 7 Critical Strikes 1 | . . 1 . Damage Taken 1352 | . 412 813 127 Core 284 | . 82 201 1 Absorbed by Shields . | . . . . Regen/Repaired (Parts) 43 | . 43 . . Core Remaining (%) 72 | 100 67 49 . Volleys Fired 73 | . 34 33 6 Largest 3 | . 2 3 3 Hottest 108 | . 40 108 63 Shots Fired 182 | . 68 98 16 Gun 167 | . 68 83 16 Cannon 15 | . . 15 . Launcher . | . . . . Special . | . . . . Kinetic 167 | . 68 83 16 Thermal 15 | . . 15 . Explosive . | . . . . Electromagnetic . | . . . . Robot Hit Streak 9 | . 7 9 8 Robot Miss Streak 4 | . 3 4 1 Penetration Max . | . . . . Secondary Targets 2 | . . 2 . Max Gunslinging Chain 1 | . . 1 . Shots Hit Robots 103 | . 40 49 14 Core Hits 40 | . 15 21 4 Critical Kills . | . . . . Critical Parts Destroyed . | . . . . Critical Strikes . | . . . . Melee Attacks . | . . . . Impact . | . . . . Slashing . | . . . . Piercing . | . . . . Sneak Attacks . | . . . . Combat Hostiles . | . . . . Follow-up Attacks . | . . . . Damage Inflicted 1125 | . 404 619 102 Guns 937 | . 404 434 99 Cannons 185 | . . 185 . Explosions . | . . . . Melee . | . . . . Ramming 3 | . . . 3 Kinetic 937 | . 404 434 99 Thermal 185 | . . 185 . Explosive . | . . . . Electromagnetic . | . . . . Impact . | . . . . Slashing . | . . . . Piercing . | . . . . Highest Corruption . | . . . . Average Corruption . | . . . . Corruption Purged . | . . . . Corruption Blocked . | . . . . Overload Shots . | . . . . Overflow Damage . | . . . . Projectiles . | . . . . Explosions . | . . . . Melee . | . . . . Knockbacks . | . . . . Impact . | . . . . Kinetic . | . . . . Secondary . | . . . . Self-Inflicted Damage 1 | . . . 1 Shots . | . . . . Rammed 1 | . . . 1 Targets Rammed 1 | . . . 1 Kicked . | . . . . Crushed . | . . . . Highest Temperature 524 | . 18 524 37 Average Temperature 165 | . 8 201 16 Received Heat Transfer 447 | . 117 303 27 Effects 5 | . . 5 . Shutdowns 3 | . . 3 . Short Circuit 2 | . . 2 . Siege Activations . | . . . . Martial Activations . | . . . . Shielding Activations . | . . . . Robots Disrupted . | . . . . Combat Hostiles . | . . . . Robots Corrupted . | . . . . Combat Hostiles . | . . . . Parts Fried . | . . . . Impact Corruptions . | . . . . Robots Melted . | . . . . Combat Hostiles . | . . . . Parts Melted . | . . . . Heat Transferred 333 | . . 333 . Parts Sabotaged . | . . . . Parts Stolen . | . . . . Parts Stripped . | . . . . Power Chain Reactions . | . . . . Alert | -11 -10 -9 -8 ------- Run | Yrd Mat Mat Mat Maximum Alert Level . | . . . . Low Security (%) 100 | 100 100 100 100 Level 1 . | . . . . Level 2 . | . . . . Level 3 . | . . . . Level 4 . | . . . . Level 5 . | . . . . High Security . | . . . . Max Security . | . . . . Peak Influence 143 | . 67 143 30 Initial 9 | . . 9 . Average 25 | . 19 64 4 Influence Increases 612 | . 295 283 34 Destroy 0b10 Robot/C 420 | . 200 200 20 Destroy 0b10 Robot/NC 10 | . . 10 . Destroy Leader 102 | . 50 42 10 Successful Hack 49 | . 45 . 4 Disable Machine 30 | . . 30 . Destroy Structure 1 | . . 1 . Influence Decreases 612 | . 273 305 34 Entered New Map 13 | . . 13 . Time Decay 416 | . 273 109 34 Lost Part 60 | . . 60 . Purge Threat 123 | . . 123 . Squads Dispatched 3 | . 2 1 . Investigation 2 | . 1 1 . Extermination . | . . . . Reinforcement 1 | . 1 . . Assault . | . . . . Garrison . | . . . . Intercept . | . . . . Searches Triggered . | . . . . Construction Impeded . | . . . . Haulers Reinforced . | . . . . Active Scanning Responses . | . . . . Cargo Convoy Interrupts . | . . . . Stealth | -11 -10 -9 -8 --------- Run | Yrd Mat Mat Mat Distress Signals 7 | . 6 1 . Communications Jammed . | . . . . Distress Signals . | . . . . Times Spotted 39 | . 22 14 3 Peak Tracking Total 8 | . 4 8 1 Tactical Retreats . | . . . . Traps | -11 -10 -9 -8 ------- Run | Yrd Mat Mat Mat Traps Triggered 2 | . . 1 1 Indirectly . | . . . . Trap Hack Attempts . | . . . . Triggered . | . . . . Disarmed 10 | . 4 . 6 Reprogrammed . | . . . . Reused . | . . . . Traps Extracted . | . . . . Installed . | . . . . Triggered . | . . . . Machines | -11 -10 -9 -8 ---------- Run | Yrd Mat Mat Mat Machines Disabled 4 | . 2 2 . Max in Single Turn 1 | . 1 1 . Machines Repaired . | . . . . Machines Dismantled . | . . . . Machines Sabotaged . | . . . . Overloaded Fab Kills . | . . . . Hacking | -11 -10 -9 -8 --------- Run | Yrd Mat Mat Mat Machines Accessed 10 | . 8 1 1 Terminals 7 | . 5 1 1 Fabricators . | . . . . Repair Stations 1 | . 1 . . Recycling Units 2 | . 2 . . Scanalyzers . | . . . . Garrison Access . | . . . . Total Hacks 32 | . 25 2 5 Successful 21 | . 17 1 3 Failed 11 | . 8 1 2 Catastrophic 1 | . . . 1 Database Lockouts . | . . . . Manual . | . . . . Terminals 20 | . 13 2 5 Fabricators . | . . . . Repair Stations 6 | . 6 . . Recycling Units 6 | . 6 . . Scanalyzers . | . . . . Garrison Access . | . . . . Terminal Hacks 13 | . 9 1 3 Record 2 | . 2 . . Branch Access Points 1 | . 1 . . Emergency Access Points 1 | . 1 . . Unreport Threat 1 | . . 1 . Locate Traps 2 | . 1 . 1 Disarm Traps 2 | . 1 . 1 Dispatch Records 2 | . 2 . . Patrol Status 1 | . . . 1 Zone Layout 1 | . 1 . . Fabricator Hacks . | . . . . Repair Station Hacks 3 | . 3 . . Scan Component 2 | . 2 . . Repair 1 | . 1 . . Recycling Unit Hacks 5 | . 5 . . Process 1 | . 1 . . Report Inventory 2 | . 2 . . Retrieve Matter 1 | . 1 . . Retrieve Components 1 | . 1 . . Scanalyzer . | . . . . Garrison Access Hacks . | . . . . Unauthorized Hacks . | . . . . Terminals . | . . . . Fabricators . | . . . . Repair Stations . | . . . . Recycling Units . | . . . . Scanalyzers . | . . . . Garrison Access . | . . . . Data Cores Recovered . | . . . . Used . | . . . . Hacking Detections 8 | . 6 1 1 Full Trace Events 3 | . 3 . . Feedback Events . | . . . . Feedback Blocked . | . . . . Robot Schematics Acquired . | . . . . Robots Built . | . . . . Authchips . | . . . . Time . | . . . . Total Robot Build Rating . | . . . . Part Schematics Acquired . | . . . . Parts Built . | . . . . Authchips . | . . . . Time . | . . . . Total Part Build Rating . | . . . . Parts Repaired 1 | . 1 . . Time 26 | . 26 . . Parts Recycled . | . . . . Recycled Matter 67 | . 67 . . Retrieved Matter 67 | . 67 . . Retrieved Components 2 | . 2 . . Parts Scanalyzed . | . . . . Part Schematics Acquired . | . . . . Parts Damaged . | . . . . Bothacking | -11 -10 -9 -8 ------------ Run | Yrd Mat Mat Mat Used RIF Installer . | . . . . Robots Hacked . | . . . . Non-combat . | . . . . Combat . | . . . . Robot Hacks Applied . | . . . . Relay Couplers Released . | . . . . Fabnet Peak Effective % . | . . . . Robots Rewired . | . . . . Allies Hacked . | . . . . Hacks Repelled . | . . . . Allies | -11 -10 -9 -8 -------- Run | Yrd Mat Mat Mat Total Allies . | . . . . Largest Group . | . . . . Highest-Rated Group . | . . . . Highest-Rated Ally . | . . . . Total Orders . | . . . . Ally Attacks . | . . . . Total Damage . | . . . . Kills . | . . . . Allies Corrupted . | . . . . Allies Melted . | . . . . Intel | -11 -10 -9 -8 ------- Run | Yrd Mat Mat Mat Active Infowar (turns) 1010 | . 850 160 . Seismic 1010 | . 850 160 . Robot Analysis Total . | . . . . Derelict Logs Recovered . | . . . . Drone Launches . | . . . . Drone Recoveries . | . . . . Exploration | -11 -10 -9 -8 ------------- Run | Yrd Mat Mat Mat Turns Passed 1440 | 67 874 303 196 Spaces Moved 821 | 35 422 156 208 Core 20 | 17 . 3 . Treads 507 | 18 422 67 . Legs . | . . . . Wheels . | . . . . Hover . | . . . . Flight 294 | . . 86 208 Fastest Speed 34 | 50 160 34 34 Average Speed 130 | 165 160 112 78 Slowest Speed 400 | 250 160 400 117 Overloaded Moves . | . . . . Propulsion Burnouts . | . . . . Robots Hopped . | . . . . Potential Cave-ins . | . . . . Cave-ins Triggered . | . . . . Exploration Rate (%) 31 | 4 76 18 28 Regions Visited 3 Branch Regions . Pre-discovered Areas . | . . . . Known Exits Taken . | . . . . Unknown Exits Taken 3 | 1 1 1 . Scrap Searched . | . . . . Spaces Dug . | . . . . Terrain Destroyed . | . . . . Melee . | . . . . Projectile . | . . . . AOE . | . . . . Terrain Rammed . | . . . . Walls Destroyed . | . . . . Machines Disabled . | . . . . Actions | -11 -10 -9 -8 --------- Run | Yrd Mat Mat Mat Total 1053 | 41 559 222 231 Wait 90 | . 84 . 6 Move 818 | 34 421 155 208 Hop . | . . . . Pick Up 22 | 1 15 3 3 Fast Attach 16 | 6 2 8 . Attach 8 | . . 6 2 Detach 5 | . . 4 1 Swap 5 | . 1 3 1 Drop 15 | . 2 10 3 Fire 73 | . 34 33 6 Melee . | . . . . Ram 1 | . . . 1 Kick . | . . . . Crush . | . . . . Escape Stasis . | . . . . Rewire . | . . . . Trap . | . . . . Miscellaneous . | . . . . Route ------- -11/Scrapyard -10/Materials (discovered 4 exits: *Mat x2 / *Min x2) -9/Materials -8/Materials History --------- Turn | Location | Event 11 | -11/Scrapyard | Discovered new exit (range 16) 68 | -11/Scrapyard | Entered Materials 175 | -10/Materials | Discovered new exit (range 16) 313 | -10/Materials | Build established: Mutant 359 | -10/Materials | Identified exit to Mines 592 | -10/Materials | Repaired Ion Engine 601 | -10/Materials | Discovered new exit (range 9) 668 | -10/Materials | Derelicts attacked the area 831 | -10/Materials | Discovered new exit (range 10) 942 | -10/Materials | Entered another Materials area 942 | -9/Materials | Evolved 2 slots: Propulsion x1, Weapon x1 1141 | -9/Materials | Core integrity fell below 50% 1154 | -9/Materials | Lost 6 parts (1p3n2w) 1167 | -9/Materials | Destroyed 7 combat bots 1230 | -9/Materials | Discovered new exit (range 14) 1245 | -9/Materials | Entered another Materials area 1245 | -8/Materials | Evolved 2 slots: Propulsion x2 1327 | -8/Materials | Lost 3 parts (1p1n1w) 1441 | -8/Materials | Self-destructed Last Messages --------------- Y-45 Defender destroyed. Acquired 13 matter. Connecting with Repair Station... Current location identified: Materials Slammed into M-13 Machinist. Acquired 16 matter. K-01 Serf collects debris. K-01 Serf cleans the Nuclear Reactor. K-01 Serf collects debris. Connecting with Terminal... >>Traps(Locate) Found 6 traps in 1 array: 6x Blade Trap Map updated. >>Traps(Disarm) Disarmed 6 Blade Traps. >>Enumerate(Patrols) Retrieving latest reported positions... Found 5 active patrol squads. Downloaded coordinate data. Map ----- +----------------------------------------------------+ | ??##### ###+##### ############ """ #???????? | | ??????# # ## #??????????# #???????? | | ??????# #""" ## ???????????#####+#####???????? | | ??????# #""" ## ???????????????# #???####+#### | | ??????# #""" ## ?????????????### ###? | | ??????# # ## ?????????????# # | | ??????# # ## ?????????????# # |! | | ??????# ######### ?????######### T + | = | | ??????# #???????#???? # | | ??????# #????????????????####### # | | ??????# #??????????????????????## ##?######### | | ??????# ?????????????########### #??????????? | | ?????? ?????????????# T # #??????????? | | ??????? ??????????????# + #??????????? | | ????????????????????????# # #??????????? | | ????????????????????????# # #??????????? | | ????????????????????????#+######### #??????????? | | ????????????????????????# #??????? #?????????? | | ????????????????????????# #??????? #?????????? | | ????????????????????????# #??????# T #?????????? | | ?????????????????????#### ####???# #?????????? | | ?????????????????????+ #???# #?????????? | | ?????????????????????# #???## ##?????????? | | ?????????????###+##### #????# #??????????? | | ?????????? #????? #??????????? | | ?????????? @ #????? #??????????? | | ??????????? """ """ #????? ????????????? | | ??????????????"" """ *[ #????? ????????????? | | ??????????????"" """ ![ #???????????????????? | | ????????????????? ^[ ??????????????????? | | ???????????????? ! ?????????????????? | | ??????????????? """ ##????????????????? | | ??????????????? """ #?????????????????? | | ?????????????? """ #?????????????????? | | ?????????????T"??? #?????????????????? | | ??????????????????? ?????????????????? | | ??????????????????? ###+#####+##????????????????? | | ???????????????????##????????????????????????????? | | ?????????????????????????????????????????????????? | | ?????????????????????????????????????????????????? | | ?????????????????????????????????????????????????? | | ?????????????????????????????????????????????????? | | ?????????????????????????????????????????????????? | | ?????????????????????????????????????????????????? | | | | | | | | | | | | | +----------------------------------------------------+ Best States ------------- Heat Dissipation 31 Energy Generation 10 Energy Capacity 250 Matter Stores 300 Matter Capacity 300 Sight Range 16 Terrain Scan Density 10 Evasion (%) 63 Targeting Accuracy 6 Recoil Reduction 3 Item Schematics ----------------- None Robot Schematics ------------------ None Fabricated ------------ Nothing Repaired ---------- Ion Engine | 28% | -10/Materials Alien Tech Used ----------------- None Achievements -------------- None Challenges ------------ None Game ------ Seed PrecisionEnergyCarapace Manual? 0 Play Time 00:20:46 Cumulative 37.2 hours Start 2025.10.03 @ 17:47:07 End 2025.10.03 @ 18:07:22 Sessions 1 Manual Loads 0 Difficulty Rogue Special Mode None Game No. 67 Rogue 67 Adventurer 0 Explorer 0 Win Type - Total 0 Types 0/0/0/0/0/0/0/0/0/0 Lore% 12 Gallery% 26 Achievement% 26 Wizard Run 0 Options --------- Layout 1 ASCII 1 Keyboard 0 Movement Numpad Keybinds 0 Fullscreen 1 Font 24/Cog Map View 50x35 Zoom Use 0% Tactical HUD 0 Map Filters NONE Filters NONE Steam 0 RUN: e2c6c904-952a-456e-9f08-1ccc9c0117c7